Cogmind - Beta 15 @@@ ROGUE MODE // 2025.08.06 @ 04:10:07 Player: lvl5hm Result: Escaped! Performance ------------- Evolutions (9) 4500 Regions Visited (14) 2800 Robots Destroyed (0) 0 Value Destroyed (20) 20 Prototype IDs (37) 740 Alien Tech Used (0) 0 Bonus (13969) 13969 TOTAL SCORE: 22029 Bonus ------- Pacifist 10669 Aligned with FarCom 300 Win 3000 Cogmind --------- Core Integrity 1600/1600 Matter 75/300 Energy 344/350 System Corruption 0% Temperature Cool (15) Movement Flying (26) Location To Epsilon Eridani Parts ------- > --- POWER (2) -------- Enhanced Nuclear Core Micro Antimatter Reactor > --- PROPULSION (6) --- Improved VTOL Module Field Propulsion Array Q-thruster Q-thruster Electron Diverter > --- UTILITY (15) ----- Advanced Power Amplifier Spectral Analyzer Advanced Terrain Scanner Advanced Terrain Scan Processor Advanced Transmission Jammer ECM Suite Improved Light Armor Plating Graphene Brace Hacking Suite Hacking Suite Hacking Suite Hacking Suite System Shield System Shield Advanced System Shield > --- WEAPON (2) ------- Enhanced Nova Cannon > --- INVENTORY (5) ---- Impulse Thruster Array Improved Q-thruster System Restoration Module Peak State ------------ > --- POWER ------------ Enhanced Nuclear Core Micro Antimatter Reactor > --- PROPULSION ------- Improved VTOL Module Field Propulsion Array Q-thruster Q-thruster Electron Diverter > --- UTILITY ---------- Advanced Power Amplifier Spectral Analyzer Advanced Terrain Scanner Advanced Terrain Scan Processor Advanced Transmission Jammer ECM Suite Improved Light Armor Plating Graphene Brace Hacking Suite Hacking Suite Hacking Suite Hacking Suite System Shield System Shield Advanced System Shield > --- WEAPON ----------- Enhanced Nova Cannon > --- INVENTORY -------- Improved VTOL Module Q-thruster Impulse Thruster Array System Restoration Module [Rating: 135] Favorites ----------- Power Backup Power VII Engine Light Ion Engine Power Core Backup Power VII Reactor Micro Antimatter Reactor Propulsion Improved VTOL Module Treads Light Treads Flight Unit Improved VTOL Module Utility Hacking Suite Device ECM Suite Processor Advanced Terrain Scan Processor Hackware Hacking Suite Protection Improved Light Armor Plating Weapon Longsword +1 Energy Cannon Nova Cannon Impact Weapon Flail Slashing Weapon Longsword +1 Build | -11 -10 -10 -10 -9 -8 -7 -6 -5 -4 -4 -4 -3 -2 -1 ------- Run | Yrd Mat Min Exi Min Mat Fac Fac Fac Fac Was Fac Res Res Acc Slots Evolved 18 | . . . . . 4 2 2 2 2 . . 2 2 2 Power 1 | . . . . . . . . . 1 . . . . . Propulsion 4 | . . . . . 2 . . 1 1 . . . . . Utility 13 | . . . . . 2 2 2 1 . . . 2 2 2 Weapon . | . . . . . . . . . . . . . . . Parts Attached 61 | 2 4 2 1 . 4 13 3 4 2 . 2 9 6 9 Power 7 | . . . . . 1 2 . 1 1 . 1 . . 1 Engine 2 | . . . . . 1 . . 1 . . . . . . Core 4 | . . . . . . 2 . . 1 . 1 . . . Reactor 1 | . . . . . . . . . . . . . . 1 Propulsion 16 | 2 . . . . 2 3 . . 1 . . 4 2 2 Treads 2 | 2 . . . . . . . . . . . . . . Leg . | . . . . . . . . . . . . . . . Wheel . | . . . . . . . . . . . . . . . Hover . | . . . . . . . . . . . . . . . Flight 14 | . . . . . 2 3 . . 1 . . 4 2 2 Utility 31 | . 1 2 . . 1 8 3 3 . . 1 4 3 5 Device 13 | . 1 1 . . . 3 1 2 . . . 1 2 2 Storage . | . . . . . . . . . . . . . . . Processor 5 | . . 1 . . . 2 . 1 . . . . 1 . Hackware 12 | . . . . . . 3 2 . . . 1 3 . 3 Protection 1 | . . . . . 1 . . . . . . . . . Artifact . | . . . . . . . . . . . . . . . Weapon 7 | . 3 . 1 . . . . . . . . 1 1 1 Energy Gun . | . . . . . . . . . . . . . . . Energy Cannon 3 | . . . . . . . . . . . . 1 1 1 Ballistic Gun . | . . . . . . . . . . . . . . . Ballistic Cannon . | . . . . . . . . . . . . . . . Launcher . | . . . . . . . . . . . . . . . Special Weapon . | . . . . . . . . . . . . . . . Impact Weapon 3 | . 3 . . . . . . . . . . . . . Slashing Weapon 1 | . . . 1 . . . . . . . . . . . Piercing Weapon . | . . . . . . . . . . . . . . . Special Melee Weapon . | . . . . . . . . . . . . . . . Unidentified Prototypes 8 | . . 1 . . 1 2 . 1 . . . 1 2 . Parts Lost 7 | . . . . . . . . . . . . 2 5 . Power 1 | . . . . . . . . . . . . . 1 . Propulsion 1 | . . . . . . . . . . . . 1 . . Utility 4 | . . . . . . . . . . . . 1 3 . Weapon 1 | . . . . . . . . . . . . . 1 . Highest Loss Streak 2 | . . . . . . . . . . . . 1 2 . To Critical Strikes . | . . . . . . . . . . . . . . . Average Backups 4 | . 1 4 4 5 4 4 4 3 4 5 4 4 4 3 Power . | . . 1 1 1 1 . 1 1 1 1 1 1 . . Propulsion 1 | . . . 1 1 . . 1 . 1 1 1 . 1 2 Utility 2 | . . . 1 1 1 2 2 1 2 3 2 2 1 1 Weapon . | . 1 1 1 2 1 . . . . . . . . . Tool/Special . | . . . . . . . . . . . . . . . Unused Backups 17 | . . . . . . 7 . 3 2 . . 1 . 4 Power 2 | . . . . . . 1 . 1 . . . . . . Propulsion 3 | . . . . . . . . . . . . 1 . 2 Utility 9 | . . . . . . 4 . 1 2 . . . . 2 Weapon 3 | . . . . . . 2 . 1 . . . . . . Tool/Special . | . . . . . . . . . . . . . . . Average Slot Usage (%) 85 | . 37 63 63 57 45 80 92 91 88 89 88 93 91 80 Engine 1 | . . . . . 7 4 . 3 . . . . . . Core 5 | . . . . . . 2 6 1 9 10 10 9 7 4 Treads 1 | . 28 28 28 28 2 . . . . . . . . . Flight 21 | . . . . . 15 20 26 29 25 26 25 22 21 20 Device 11 | . 2 14 14 14 . 8 11 14 15 15 12 9 12 18 Processor 9 | . . 6 14 14 9 15 13 11 10 10 9 4 8 8 Hackware 22 | . . . . . . 14 26 23 21 21 24 32 29 21 Protection 3 | . . . . . 6 5 1 . . . . 3 4 4 Energy Cannon 1 | . . . . . . . . . . . . 3 4 4 Slashing Weapon 3 | . . . . . 4 7 6 5 5 5 5 4 1 . Peak Build Rating 135 | 2 5 14 15 7 23 49 56 71 80 79 82 118 132 135 Average Rating 77 | 1 3 7 7 7 16 39 54 64 78 79 79 102 124 118 On Entrance 45 | . 2 5 9 7 7 23 49 56 66 79 79 79 116 110 Naked Turns . | . . . . . . . . . . . . . . . Heaviest Build 44 | . 3 3 3 1 9 15 15 18 26 22 29 29 44 40 Greatest Support 45 | 3 3 3 3 3 10 21 21 27 35 35 35 41 45 45 Greatest Overweight (x) . | . . . . . . . . . . . . . . . Average Overweight (x) . | . . . . . . . . . . . . . . . Largest Inventory Capacity 5 | 5 5 5 5 5 5 5 5 5 5 5 5 5 5 5 Average Capacity 5 | 5 5 5 5 5 5 5 5 5 5 5 5 5 5 5 Most Carried 5 | . 3 5 5 5 5 5 5 5 5 5 5 5 5 5 Average Carried 4 | . 2 4 4 5 4 4 4 4 4 5 4 4 4 4 Final Capacity 5 | 5 5 5 5 5 5 5 5 5 5 5 5 5 5 5 Final Carried 5 | . 3 4 5 5 5 5 5 5 5 5 5 5 5 4 Class Distribution -------------------- 26% | Hacker-Ninja 23% | Hacker-Scout 19% | Wizard-Sprinter 11% | Wizard-Scout 6% | Wizard-Ninja 5% | Mutant 3% | Sprinter Dominant Class ---------------- Mutant | -10/Materials Mutant | -10/Mines Mutant | -10/Exiles Mutant | -9/Mines Sprinter | -8/Materials Hacker-Scout | -7/Factory Hacker-Ninja | -6/Factory Hacker-Ninja | -5/Factory Hacker-Ninja | -4/Factory Hacker-Ninja | -4/Waste Hacker-Ninja | -4/Factory Wizard-Sprinter | -3/Research Wizard-Scout | -2/Research Hacker-Scout | -1/Access Resources | -11 -10 -10 -10 -9 -8 -7 -6 -5 -4 -4 -4 -3 -2 -1 ----------- Run | Yrd Mat Min Exi Min Mat Fac Fac Fac Fac Was Fac Res Res Acc Matter Collected 782 | 181 . . 100 . . 204 35 . . . . 145 15 102 Remotely . | . . . . . . . . . . . . . . . Salvage Created . | . . . . . . . . . . . . . . . Parts . | . . . . . . . . . . . . . . . Haulers Intercepted . | . . . . . . . . . . . . . . . Recyclers Shooed . | . . . . . . . . . . . . . . . Parts Field Recycled . | . . . . . . . . . . . . . . . Retrieved Matter . | . . . . . . . . . . . . . . . Parts Self-Destructed . | . . . . . . . . . . . . . . . Prevented . | . . . . . . . . . . . . . . . Kills | -11 -10 -10 -10 -9 -8 -7 -6 -5 -4 -4 -4 -3 -2 -1 ------- Run | Yrd Mat Min Exi Min Mat Fac Fac Fac Fac Was Fac Res Res Acc Combat Hostiles Destroyed . | . . . . . . . . . . . . . . . Classes Destroyed . | . . . . . . . . . . . . . . . Best Kill Streak . | . . . . . . . . . . . . . . . Combat Bots Only . | . . . . . . . . . . . . . . . Max Kills in Single Turn . | . . . . . . . . . . . . . . . Gunslinging . | . . . . . . . . . . . . . . . Exploded . | . . . . . . . . . . . . . . . Melee . | . . . . . . . . . . . . . . . Uniques/NPCs Destroyed . | . . . . . . . . . . . . . . . Combat | -11 -10 -10 -10 -9 -8 -7 -6 -5 -4 -4 -4 -3 -2 -1 -------- Run | Yrd Mat Min Exi Min Mat Fac Fac Fac Fac Was Fac Res Res Acc Hostile Shots Fired 165 | . 16 31 . 18 4 9 . 4 . . 2 52 23 6 Missed 89 | . 9 16 . 8 3 9 . 2 . . . 23 14 5 Hits 76 | . 7 15 . 10 1 . . 2 . . 2 29 9 1 Projectile 76 | . 7 15 . 10 1 . . 2 . . 2 29 9 1 Critical Strikes 3 | . . . . . . . . . . . . 1 2 . Damage Taken 1548 | . 60 124 . 84 15 17 . 35 . . 47 599 544 23 Core 360 | . 15 45 . 32 . . . 14 . . . 104 150 . Absorbed by Shields . | . . . . . . . . . . . . . . . Regen/Repaired (Parts) 21 | . . . . . . . . . . . 21 . . . Core Remaining (%) 94 | 100 . . . 63 100 100 100 98 . . 100 92 89 100 Volleys Fired 67 | . . . . . . . . . . . . 11 19 37 Largest 1 | . . . . . . . . . . . . 1 1 1 Hottest 120 | . . . . . . . . . . . . 113 120 120 Shots Fired 67 | . . . . . . . . . . . . 11 19 37 Gun . | . . . . . . . . . . . . . . . Cannon 67 | . . . . . . . . . . . . 11 19 37 Launcher . | . . . . . . . . . . . . . . . Special . | . . . . . . . . . . . . . . . Kinetic . | . . . . . . . . . . . . . . . Thermal 67 | . . . . . . . . . . . . 11 19 37 Explosive . | . . . . . . . . . . . . . . . Electromagnetic . | . . . . . . . . . . . . . . . Robot Hit Streak . | . . . . . . . . . . . . . . . Robot Miss Streak 1 | . . . . . . . . . . . . . 1 . Penetration Max . | . . . . . . . . . . . . . . . Secondary Targets . | . . . . . . . . . . . . . . . Shots Hit Robots . | . . . . . . . . . . . . . . . Core Hits . | . . . . . . . . . . . . . . . Critical Kills . | . . . . . . . . . . . . . . . Critical Parts Destroyed . | . . . . . . . . . . . . . . . Critical Strikes . | . . . . . . . . . . . . . . . Melee Attacks 71 | . . . . . 2 15 12 3 4 . 12 20 3 . Impact . | . . . . . . . . . . . . . . . Slashing 71 | . . . . . 2 15 12 3 4 . 12 20 3 . Piercing . | . . . . . . . . . . . . . . . Sneak Attacks . | . . . . . . . . . . . . . . . Combat Hostiles . | . . . . . . . . . . . . . . . Follow-up Attacks . | . . . . . . . . . . . . . . . Damage Inflicted . | . . . . . . . . . . . . . . . Guns . | . . . . . . . . . . . . . . . Cannons . | . . . . . . . . . . . . . . . Explosions . | . . . . . . . . . . . . . . . Melee . | . . . . . . . . . . . . . . . Ramming . | . . . . . . . . . . . . . . . Kinetic . | . . . . . . . . . . . . . . . Thermal . | . . . . . . . . . . . . . . . Explosive . | . . . . . . . . . . . . . . . Electromagnetic . | . . . . . . . . . . . . . . . Impact . | . . . . . . . . . . . . . . . Slashing . | . . . . . . . . . . . . . . . Piercing . | . . . . . . . . . . . . . . . Highest Corruption 8 | . . . . . . 4 . . . 8 8 6 7 . Average Corruption 5 | . . . . . . 2 . . . 8 8 5 6 . Corruption Purged 4 | . . . . . . 4 . . . . . . . . Corruption Blocked . | . . . . . . . . . . . . . . . Effects 45 | . . . . . . 10 . . . . 16 2 17 . Message Errors 14 | . . . . . . 4 . . . . 5 1 4 . Matter Fused 11 | . . . . . . 1 . . . . 3 1 6 . Heat Flow Errors 5 | . . . . . . 3 . . . . 2 . . . Energy Discharges 2 | . . . . . . . . . . . . . 2 . Parts Rejected 2 | . . . . . . . . . . . . . 2 . Data Loss (minor) 8 | . . . . . . 2 . . . . 6 . . . Misfires 1 | . . . . . . . . . . . . . 1 . Alerts 1 | . . . . . . . . . . . . . 1 . Weapon Failures 1 | . . . . . . . . . . . . . 1 . Overload Shots . | . . . . . . . . . . . . . . . Overflow Damage . | . . . . . . . . . . . . . . . Projectiles . | . . . . . . . . . . . . . . . Explosions . | . . . . . . . . . . . . . . . Melee . | . . . . . . . . . . . . . . . Knockbacks . | . . . . . . . . . . . . . . . Impact . | . . . . . . . . . . . . . . . Kinetic . | . . . . . . . . . . . . . . . Secondary . | . . . . . . . . . . . . . . . Self-Inflicted Damage . | . . . . . . . . . . . . . . . Shots . | . . . . . . . . . . . . . . . Rammed . | . . . . . . . . . . . . . . . Targets Rammed . | . . . . . . . . . . . . . . . Kicked . | . . . . . . . . . . . . . . . Crushed . | . . . . . . . . . . . . . . . Highest Temperature 255 | . . . . . . 222 . 4 25 20 255 198 226 199 Average Temperature 54 | . . . . . . 97 . 4 8 10 23 75 91 93 Received Heat Transfer 147 | . 9 . . . 9 . . . . . 9 48 72 . Siege Activations . | . . . . . . . . . . . . . . . Martial Activations . | . . . . . . . . . . . . . . . Shielding Activations . | . . . . . . . . . . . . . . . Robots Disrupted . | . . . . . . . . . . . . . . . Combat Hostiles . | . . . . . . . . . . . . . . . Robots Corrupted . | . . . . . . . . . . . . . . . Combat Hostiles . | . . . . . . . . . . . . . . . Parts Fried . | . . . . . . . . . . . . . . . Impact Corruptions . | . . . . . . . . . . . . . . . Robots Melted . | . . . . . . . . . . . . . . . Combat Hostiles . | . . . . . . . . . . . . . . . Parts Melted . | . . . . . . . . . . . . . . . Heat Transferred . | . . . . . . . . . . . . . . . Parts Sabotaged . | . . . . . . . . . . . . . . . Parts Stolen . | . . . . . . . . . . . . . . . Parts Stripped . | . . . . . . . . . . . . . . . Power Chain Reactions . | . . . . . . . . . . . . . . . Alert | -11 -10 -10 -10 -9 -8 -7 -6 -5 -4 -4 -4 -3 -2 -1 ------- Run | Yrd Mat Min Exi Min Mat Fac Fac Fac Fac Was Fac Res Res Acc Maximum Alert Level . | . . . . . . . . . . . . . . . Low Security (%) 100 | 100 100 100 . 100 100 100 100 100 100 100 100 100 100 100 Level 1 . | . . . . . . . . . . . . . . . Level 2 . | . . . . . . . . . . . . . . . Level 3 . | . . . . . . . . . . . . . . . Level 4 . | . . . . . . . . . . . . . . . Level 5 . | . . . . . . . . . . . . . . . High Security . | . . . . . . . . . . . . . . . Max Security . | . . . . . . . . . . . . . . . Peak Influence 47 | . . 35 . 15 20 45 38 17 15 . 21 19 15 47 Initial 9 | . . . . . 1 4 . . . . . 9 4 8 Average 3 | . . 3 . 5 2 5 8 . 3 . 3 1 1 5 Influence Increases 993 | . . 45 . 15 36 193 92 32 58 . 97 115 132 178 Successful Hack 322 | . . . . . 5 74 65 11 20 . 28 10 3 106 Disable Machine 30 | . . . . . 15 15 . . . . . . . . Destroy Structure 236 | . . . . . 1 14 12 6 8 . 24 60 54 57 Partial Spotted 210 | . . . . . 15 15 15 . 30 . 30 45 60 . Lose Combat Pursuer 195 | . . 45 . 15 . 75 . 15 . . 15 . 15 15 Influence Decreases 993 | . . 10 35 10 31 203 92 32 58 . 78 125 126 193 Entered New Map 67 | . . . 35 . 4 6 . . . . . 10 5 7 Time Decay 820 | . . 10 . 10 27 187 92 25 58 . 78 111 98 124 Lost Part 13 | . . . . . . . . . . . . 4 9 . Lost Ally 27 | . . . . . . 10 . 7 . . . . 10 . Purge Threat 66 | . . . . . . . . . . . . . 4 62 Squads Dispatched 35 | . . 1 . . 2 10 2 1 1 . 3 8 5 2 Investigation 13 | . . 1 . . . 5 . . . . 2 3 2 . Extermination 17 | . . . . . . 4 1 1 1 . 1 5 2 2 Reinforcement 5 | . . . . . 2 1 1 . . . . . 1 . Assault . | . . . . . . . . . . . . . . . Garrison . | . . . . . . . . . . . . . . . Intercept . | . . . . . . . . . . . . . . . Searches Triggered . | . . . . . . . . . . . . . . . Construction Impeded . | . . . . . . . . . . . . . . . Haulers Reinforced . | . . . . . . . . . . . . . . . Active Scanning Responses . | . . . . . . . . . . . . . . . Cargo Convoy Interrupts . | . . . . . . . . . . . . . . . Stealth | -11 -10 -10 -10 -9 -8 -7 -6 -5 -4 -4 -4 -3 -2 -1 --------- Run | Yrd Mat Min Exi Min Mat Fac Fac Fac Fac Was Fac Res Res Acc Distress Signals 14 | . 1 . . . 1 . . . . . 2 8 1 1 Communications Jammed 66 | . . . . . . . . . . . . 25 37 4 Distress Signals 66 | . . . . . . . . . . . . 25 37 4 Times Spotted 160 | . 11 6 . 5 8 15 3 7 1 5 7 46 38 8 Peak Tracking Total 15 | . 10 6 . 4 6 4 2 5 2 5 6 15 7 5 Tactical Retreats 31 | . . 2 . 1 . 3 1 2 . . 2 12 6 2 Traps | -11 -10 -10 -10 -9 -8 -7 -6 -5 -4 -4 -4 -3 -2 -1 ------- Run | Yrd Mat Min Exi Min Mat Fac Fac Fac Fac Was Fac Res Res Acc Traps Triggered 10 | . . . . . . 3 . 2 3 . 2 . . . Indirectly . | . . . . . . . . . . . . . . . Trap Hack Attempts . | . . . . . . . . . . . . . . . Triggered . | . . . . . . . . . . . . . . . Disarmed . | . . . . . . . . . . . . . . . Reprogrammed . | . . . . . . . . . . . . . . . Reused . | . . . . . . . . . . . . . . . Traps Extracted . | . . . . . . . . . . . . . . . Installed . | . . . . . . . . . . . . . . . Triggered . | . . . . . . . . . . . . . . . Machines | -11 -10 -10 -10 -9 -8 -7 -6 -5 -4 -4 -4 -3 -2 -1 ---------- Run | Yrd Mat Min Exi Min Mat Fac Fac Fac Fac Was Fac Res Res Acc Machines Disabled 2 | . . . . . 1 1 . . . . . . . . Max in Single Turn 1 | . . . . . 1 1 . . . . . . . . Garrison Access 13 | . . . . . . 1 1 2 1 . 2 3 1 2 Machines Repaired . | . . . . . . . . . . . . . . . Machines Dismantled . | . . . . . . . . . . . . . . . Machines Sabotaged . | . . . . . . . . . . . . . . . Overloaded Fab Kills . | . . . . . . . . . . . . . . . Hacking | -11 -10 -10 -10 -9 -8 -7 -6 -5 -4 -4 -4 -3 -2 -1 --------- Run | Yrd Mat Min Exi Min Mat Fac Fac Fac Fac Was Fac Res Res Acc Machines Accessed 77 | . . 1 1 . 1 13 8 6 5 . 10 13 8 11 Terminals 50 | . . . . . 1 8 7 4 4 . 6 6 6 8 Fabricators 7 | . . . . . . 3 . . . . 1 2 1 . Repair Stations 2 | . . . . . . . . . . . 1 1 . . Recycling Units 2 | . . . . . . . . . . . . 1 . 1 Scanalyzers 1 | . . . . . . 1 . . . . . . . . Garrison Access 13 | . . . . . . 1 1 2 1 . 2 3 1 2 Total Hacks 211 | . . 1 1 . 3 33 23 15 13 . 26 39 31 26 Successful 131 | . . 1 1 . 2 17 13 11 4 . 18 23 23 18 Failed 79 | . . . . . 1 16 10 3 9 . 8 16 8 8 Catastrophic 10 | . . . . . . 2 1 . . . 2 4 . 1 Database Lockouts 1 | . . . . . . . . 1 . . . . . . Manual 128 | . . . 1 . 2 18 16 12 11 . 13 20 25 10 Terminals 163 | . . . . . 3 19 22 12 11 . 19 27 27 23 Fabricators 21 | . . . . . . 10 . . . . 3 5 3 . Repair Stations 4 | . . . . . . . . . . . 2 2 . . Recycling Units 3 | . . . . . . . . . . . . 2 . 1 Scanalyzers 2 | . . . . . . 2 . . . . . . . . Garrison Access 16 | . . . . . . 2 1 3 2 . 2 3 1 2 Terminal Hacks 74 | . . 1 1 . 1 4 10 5 2 . 10 11 16 13 Record 3 | . . . . . . . . . . . 1 . . 2 Part Schematic 4 | . . . . . . . 1 1 1 . . 1 . . Robot Analysis 1 | . . . . . . . . . . . . . . 1 Prototype ID Bank 2 | . . . . . . . . . . . 1 1 . . Open Door 2 | . . 1 . . . . . . . . . . . 1 Open DSF 1 | . . . . . . . 1 . . . . . . . Level Access Points 6 | . . . . . . . 1 1 . . 1 1 1 1 Branch Access Points 2 | . . . . . . . 1 . . . . . 1 . Emergency Access Points 4 | . . . . . 1 . . . . . . . 1 2 Terminal Index 7 | . . . . . . . 1 1 1 . 1 1 1 1 Fabricator Index 6 | . . . . . . 1 1 1 . . 1 1 1 . Repair Station Index 2 | . . . . . . . . . . . . . 1 1 Scanalyzer Index 1 | . . . . . . 1 . . . . . . . . Garrison Index 3 | . . . . . . 1 1 . . . . 1 . . Unreport Threat 5 | . . . . . . . . . . . . . 3 2 Maintenance Status 1 | . . . . . . . . . . . . 1 . . Security Status 1 | . . . . . . . . . . . . 1 . . Recall Investigation 4 | . . . . . . . . . . . 1 1 2 . Recall Extermination 9 | . . . . . . 1 1 1 . . 1 1 2 2 Recall Reinforcements 2 | . . . . . . . 1 . . . . . 1 . Registered Components 4 | . . . . . . . 1 . . . 1 1 1 . Zone Layout 3 | . . . . . . . . . . . 2 . 1 . Proto ID Catalog 1 | . . . 1 . . . . . . . . . . . Fabricator Hacks 13 | . . . . . . 5 . . . . 2 4 2 . Load Schematic 7 | . . . . . . 3 . . . . 1 2 1 . Build 6 | . . . . . . 2 . . . . 1 2 1 . Repair Station Hacks 3 | . . . . . . . . . . . 2 1 . . Scan Component 1 | . . . . . . . . . . . 1 . . . Repair 1 | . . . . . . . . . . . 1 . . . Refit 1 | . . . . . . . . . . . . 1 . . Recycling Unit Hacks 3 | . . . . . . . . . . . . 2 . 1 Process 1 | . . . . . . . . . . . . 1 . . Report Inventory 1 | . . . . . . . . . . . . . . 1 Retrieve Matter 1 | . . . . . . . . . . . . 1 . . Scanalyzer 2 | . . . . . . 2 . . . . . . . . Insert Component 1 | . . . . . . 1 . . . . . . . . Analyze 1 | . . . . . . 1 . . . . . . . . Garrison Access Hacks 13 | . . . . . . 1 1 2 1 . 2 3 1 2 Seal Access 13 | . . . . . . 1 1 2 1 . 2 3 1 2 Unauthorized Hacks 23 | . . . . . 1 5 2 4 1 . 2 2 4 2 Terminals 21 | . . . . . 1 4 2 4 1 . 2 2 3 2 Assimilate 12 | . . . . . . 2 1 3 . . 1 2 2 1 Botnet 9 | . . . . . 1 2 1 1 1 . 1 . 1 1 Fabricators 2 | . . . . . . 1 . . . . . . 1 . Prioritize 2 | . . . . . . 1 . . . . . . 1 . Repair Stations . | . . . . . . . . . . . . . . . Recycling Units . | . . . . . . . . . . . . . . . Scanalyzers . | . . . . . . . . . . . . . . . Garrison Access . | . . . . . . . . . . . . . . . Data Cores Recovered . | . . . . . . . . . . . . . . . Used . | . . . . . . . . . . . . . . . Hacking Detections 55 | . . . . . 1 12 5 4 5 . 5 10 7 6 Full Trace Events 12 | . . . . . . 5 . . . . 2 3 2 . Feedback Events 2 | . . . . . . . . . . . . . 2 . Hackware Fried 2 | . . . . . . . . . . . . . 2 . Feedback Blocked . | . . . . . . . . . . . . . . . Robot Schematics Acquired . | . . . . . . . . . . . . . . . Robots Built . | . . . . . . . . . . . . . . . Authchips . | . . . . . . . . . . . . . . . Time . | . . . . . . . . . . . . . . . Total Robot Build Rating . | . . . . . . . . . . . . . . . Part Schematics Acquired 4 | . . . . . . 1 1 . 1 . . 1 . . Parts Built 6 | . . . . . . 2 . . . . 1 1 2 . Authchips . | . . . . . . . . . . . . . . . Time 326 | . . . . . . 174 . . . . 53 84 15 . Total Part Build Rating 28 | . . . . . . 6 . . . . 6 6 10 . Parts Repaired 1 | . . . . . . . . . . . 1 . . . Time 44 | . . . . . . . . . . . 44 . . . Parts Recycled . | . . . . . . . . . . . . . . . Recycled Matter 10 | . . . . . . . . . . . . 10 . . Retrieved Matter 10 | . . . . . . . . . . . . 10 . . Retrieved Components . | . . . . . . . . . . . . . . . Parts Scanalyzed 1 | . . . . . . 1 . . . . . . . . Part Schematics Acquired 1 | . . . . . . 1 . . . . . . . . Parts Damaged . | . . . . . . . . . . . . . . . Bothacking | -11 -10 -10 -10 -9 -8 -7 -6 -5 -4 -4 -4 -3 -2 -1 ------------ Run | Yrd Mat Min Exi Min Mat Fac Fac Fac Fac Was Fac Res Res Acc Used RIF Installer . | . . . . . . . . . . . . . . . Robots Hacked . | . . . . . . . . . . . . . . . Non-combat . | . . . . . . . . . . . . . . . Combat . | . . . . . . . . . . . . . . . Robot Hacks Applied . | . . . . . . . . . . . . . . . Relay Couplers Released . | . . . . . . . . . . . . . . . Fabnet Peak Effective % . | . . . . . . . . . . . . . . . Robots Rewired . | . . . . . . . . . . . . . . . Allies Hacked 1 | . . . . . . . . . . . . 1 . . Hacks Repelled . | . . . . . . . . . . . . . . . Allies | -11 -10 -10 -10 -9 -8 -7 -6 -5 -4 -4 -4 -3 -2 -1 -------- Run | Yrd Mat Min Exi Min Mat Fac Fac Fac Fac Was Fac Res Res Acc Total Allies 8 | . . . . . . 1 . 2 . . 1 2 1 1 Largest Group 2 | . . . . . . 1 . 2 . . 1 1 1 1 Highest-Rated Group 45 | . . . . . . 26 . 20 . . 26 45 10 45 Highest-Rated Ally 45 | . . . . . . 26 . 10 . . 26 45 10 45 Total Orders 3 | . . . . . . . . . . . 1 . 1 1 STAY 3 | . . . . . . . . . . . 1 . 1 1 Ally Attacks . | . . . . . . . . . . . . . . . Total Damage . | . . . . . . . . . . . . . . . Kills . | . . . . . . . . . . . . . . . Allies Corrupted . | . . . . . . . . . . . . . . . Allies Melted . | . . . . . . . . . . . . . . . Intel | -11 -10 -10 -10 -9 -8 -7 -6 -5 -4 -4 -4 -3 -2 -1 ------- Run | Yrd Mat Min Exi Min Mat Fac Fac Fac Fac Was Fac Res Res Acc Active Infowar (turns) 6310 | . 18 133 146 23 143 1326 383 560 306 23 438 1344 797 670 Optics 4825 | . . 63 146 23 143 1326 383 560 306 23 385 . 797 670 Sensors 1 | . . 1 . . . . . . . . . . . . Terrain 4521 | . . . . . . 1272 383 560 306 23 391 182 734 670 Seismic 326 | . 18 133 146 23 6 . . . . . . . . . Jamming 3074 | . . . . . . . . 1 267 23 438 1344 790 211 ECM 2525 | . . . . . . 24 93 49 76 23 204 1164 724 168 Robot Analysis Total 1 | . . . . . . . . . . . . . . 1 Derelict Logs Recovered 3 | . . 3 . . . . . . . . . . . . Drone Launches . | . . . . . . . . . . . . . . . Drone Recoveries . | . . . . . . . . . . . . . . . Exploration | -11 -10 -10 -10 -9 -8 -7 -6 -5 -4 -4 -4 -3 -2 -1 ------------- Run | Yrd Mat Min Exi Min Mat Fac Fac Fac Fac Was Fac Res Res Acc Turns Passed 6359 | 17 50 133 146 23 143 1326 383 560 306 23 438 1344 797 670 Spaces Moved 13614 | 28 83 250 286 45 260 3058 1044 1151 719 93 1142 3240 1208 1007 Core 723 | 28 83 250 286 45 31 . . . . . . . . . Treads . | . . . . . . . . . . . . . . . Legs . | . . . . . . . . . . . . . . . Wheels . | . . . . . . . . . . . . . . . Hover . | . . . . . . . . . . . . . . . Flight 12891 | . . . . . 229 3058 1044 1151 719 93 1142 3240 1208 1007 Fastest Speed 24 | 50 50 50 50 50 32 26 26 24 25 25 25 25 26 26 Average Speed 28 | 50 50 50 50 50 34 29 26 24 25 25 25 26 26 26 Slowest Speed 50 | 50 50 50 50 50 50 32 26 24 25 25 27 29 29 27 Overloaded Moves . | . . . . . . . . . . . . . . . Propulsion Burnouts . | . . . . . . . . . . . . . . . Robots Hopped 122 | . . . . . 3 28 7 13 3 . 12 19 33 4 Potential Cave-ins 12 | . . . . . . . . . . . . . . 12 Cave-ins Triggered 1 | . . . . . . . . . . . . . 1 . Exploration Rate (%) 38 | 3 36 65 71 18 28 54 29 22 20 95 29 49 27 30 Regions Visited 14 Branch Regions 3 Pre-discovered Areas . | . . . . . . . . . . . . . . . Known Exits Taken 6 | . . . . . 1 . 1 1 . . 1 1 1 . Unknown Exits Taken 6 | 1 1 1 1 1 . 1 . . . . . . . . Scrap Searched 1 | . . 1 . . . . . . . . . . . . Spaces Dug 125 | . . . . . 1 14 12 3 4 . 12 30 20 29 Terrain Destroyed 135 | . . . . . 1 14 12 3 4 . 12 31 21 37 Melee 68 | . . . . . 1 14 12 3 4 . 12 20 2 . Projectile 67 | . . . . . . . . . . . . 11 19 37 AOE . | . . . . . . . . . . . . . . . Terrain Rammed . | . . . . . . . . . . . . . . . Walls Destroyed . | . . . . . . . . . . . . . . . Machines Disabled . | . . . . . . . . . . . . . . . Actions | -11 -10 -10 -10 -9 -8 -7 -6 -5 -4 -4 -4 -3 -2 -1 --------- Run | Yrd Mat Min Exi Min Mat Fac Fac Fac Fac Was Fac Res Res Acc Total 15889 | 29 89 258 289 44 309 3432 1135 1418 840 92 1267 3689 1627 1371 Wait 2065 | . . . . . 40 350 78 246 95 . 118 410 418 310 Move 13363 | 27 82 249 285 44 253 3002 1029 1124 713 92 1118 3201 1146 998 Hop 115 | . . . . . 3 27 7 13 3 . 11 19 28 4 Pick Up 40 | . 1 3 . . 3 9 2 4 5 . 1 7 1 4 Fast Attach 40 | 2 4 2 1 . 2 9 1 3 1 . 1 3 4 7 Attach 21 | . . . . . 3 3 2 2 2 . 1 5 3 . Detach 17 | . 2 1 2 . . 3 1 1 1 . 1 3 2 . Swap 15 | . . . . . . 3 2 1 . . 3 3 1 2 Drop 47 | . . 3 1 . 3 11 1 5 4 . 1 7 2 9 Fire 67 | . . . . . . . . . . . . 11 19 37 Melee 71 | . . . . . 2 15 12 3 4 . 12 20 3 . Ram . | . . . . . . . . . . . . . . . Kick . | . . . . . . . . . . . . . . . Crush . | . . . . . . . . . . . . . . . Escape Stasis 28 | . . . . . . . . 16 12 . . . . . Rewire . | . . . . . . . . . . . . . . . Trap . | . . . . . . . . . . . . . . . Miscellaneous . | . . . . . . . . . . . . . . . Route ------- -11/Scrapyard -10/Materials -10/Mines (discovered 3 exits: [*Mat x2] / *Exi) -10/Exiles (discovered 2 exits: [*Min x2]) -9/Mines -8/Materials (discovered 2 exits: *Fac x2) -7/Factory (discovered 3 exits: *Fac x2 / [Low]) -6/Factory (discovered 6 exits: *Fac x4 / Low x2) -5/Factory (discovered 4 exits: *Fac x4) -4/Factory -4/Waste -4/Factory (discovered 4 exits: *Res x4) -3/Research (discovered 3 exits: *Res x3) -2/Research (discovered 5 exits: *Acc x3 / Qua x2) -1/Access To Epsilon Eridani History --------- Turn | Location | Event 3 | -11/Scrapyard | Discovered new exit (range 16) 18 | -11/Scrapyard | Entered Materials 62 | -10/Materials | Discovered new exit (range 11) 68 | -10/Materials | Entered Mines 76 | -10/Mines | Learned 8 Materials zone layouts 81 | -10/Mines | Found a damaged Exp. Sensor Array with a note attached 82 | -10/Mines | Found Prototype Device 82 | -10/Mines | Identified Exp. Sensor Array 94 | -10/Mines | Discovered new exit (range 13) 101 | -10/Mines | Received a Rocket Launcher from a helpful Derelict 135 | -10/Mines | Met a Derelict shopkeep closing up shop 169 | -10/Mines | Learned Materials security intel 191 | -10/Mines | Discovered new exit (range 7) 195 | -10/Mines | Learned Materials emergency access door positions 199 | -10/Mines | Deemed a non-threat by the Exiles lab entrance 199 | -10/Mines | Discovered new exit (range 5) 201 | -10/Mines | Entered Exiles 208 | -10/Exiles | Discovered new exit (range 17) 214 | -10/Exiles | Met 8R-AWN 223 | -10/Exiles | Met EX-HEX 238 | -10/Exiles | Met EX-BIN 245 | -10/Exiles | Aligned with FarCom system 245 | -10/Exiles | Given EX-Vault access code 257 | -10/Exiles | Opened EX-Vault 262 | -10/Exiles | Found Longsword +1 274 | -10/Exiles | Warned to stay clear of 0b10 Research branches 304 | -10/Exiles | Build established: Mutant 315 | -10/Exiles | Met EX-DEC 342 | -10/Exiles | Discovered new exit (range 12) 347 | -10/Exiles | Left Exiles lab with Longsword +1 347 | -10/Exiles | Entered Mines 364 | -9/Mines | Discovered new exit (range 14) 370 | -9/Mines | Entered Materials 370 | -8/Materials | Evolved 4 slots: Propulsion x2, Utility x2 371 | -8/Materials | Identified exit to Factory 513 | -8/Materials | Entered Factory 513 | -7/Factory | Evolved 2 slots: Utility x2 821 | -7/Factory | Fabricated Imp. VTOL Module? 939 | -7/Factory | Build established: Hacker-Scout 1150 | -7/Factory | Fabricated Imp. VTOL Module? 1339 | -7/Factory | Discovered new exit (range 17) 1431 | -7/Factory | Discovered new exit (range 15) 1779 | -7/Factory | Discovered new exit (range 5) 1839 | -7/Factory | Entered another Factory area 1839 | -6/Factory | Evolved 2 slots: Utility x2 1926 | -6/Factory | Identified exit to DSF 1959 | -6/Factory | Identified exit to Factory 2142 | -6/Factory | Identified exit to Lower Caves 2222 | -6/Factory | Entered another Factory area 2222 | -5/Factory | Evolved 2 slots: Propulsion x1, Utility x1 2250 | -5/Factory | Build established: Hacker-Ninja 2391 | -5/Factory | Identified exit to Factory 2417 | -5/Factory | Central database locked down 2435 | -5/Factory | Spotted B-75 Beast 2782 | -5/Factory | Entered another Factory area 2782 | -4/Factory | Evolved 2 slots: Power x1, Propulsion x1 3088 | -4/Factory | Sucked down chute 3088 | -4/Factory | Entered Waste 3095 | -4/Waste | Spotted C-40 Crusher 3095 | -4/Waste | Spotted C-40 Crusher 3100 | -4/Waste | Spotted C-40 Crusher 3101 | -4/Waste | Spotted C-40 Crusher 3103 | -4/Waste | EMP discharged 3104 | -4/Waste | Spotted C-40 Crusher 3108 | -4/Waste | Discovered new exit (range 14) 3108 | -4/Waste | Spotted C-40 Crusher 3111 | -4/Waste | Entered Factory 3171 | -4/Factory | Repaired Xenon Bombardment Thruster 3316 | -4/Factory | Fabricated Adv. Hacking Suite? 3342 | -4/Factory | Identified exit to Research 3549 | -4/Factory | Entered Research 3549 | -3/Research | Evolved 2 slots: Utility x2 3646 | -3/Research | Identified exit to Research 3825 | -3/Research | Fabricated Adv. Hacking Suite (x1) 4025 | -3/Research | Build established: Wizard-Sprinter 4273 | -3/Research | Found Prototype Processor 4788 | -3/Research | Spotted B-86 Titan 4893 | -3/Research | Entered another Research area 4893 | -2/Research | Evolved 2 slots: Utility x2 4893 | -2/Research | Identified Spectral Analyzer 4912 | -2/Research | Identified exit to Access 4920 | -2/Research | Identified exit to Quarantine 4951 | -2/Research | Fabricated Adv. Terrain Scanner (x2) 5210 | -2/Research | Crushed by falling debris 5570 | -2/Research | Build established: Wizard-Scout 5659 | -2/Research | Adv. Hacking Suite fried by hacking feedback 5659 | -2/Research | Adv. Hacking Suite fried by hacking feedback 5690 | -2/Research | Entered Access 5690 | -1/Access | Evolved 2 slots: Utility x2 6010 | -1/Access | Build established: Hacker-Scout 6069 | -1/Access | Identified exit to Surface 6360 | *** | Escaped! Last Messages --------------- (59,123) (49,118) (59,125) Map updated. 06217_ Dropped Power Amplifier. 06251_ ALERT: Potential suspicious activity detected, Programmers report to Access Zone 9S. 06254_ Connecting with Terminal... >>Recall(Extermination) Establishing remote squad link... Recalled extermination squad KL5QMOZIS0. 06255_ Dropped Q-thruster. 06255_ Dropped Imp. VTOL Module. 06256_ Acquired Prototype Flight Unit. 06358_ Connecting with Terminal... >>Open(Door) Sealed Barrier opened. 06359_ The Access Shell folds into the floor. [Achievement: Pacifist] Map ----- +----------------------------------------------------+ | "" ########/## ????????????????????????????? | | " ######?# ########??#?????????????????????????? | | ##+######### ####?# ? ???????????????????????????? | | ## ######### ###### ? ??????????????????????????? | | ##+######### ###### ""G?????????????????????????? | | ## ###?## " ? ? ?????????????????????? | | ## #####? "?? ???????????????????????? | | ## ###### ? ?????????????????????? | | " ## ###### ?? ??????????????????????? | | """ ## ###### ????? ????????????????? | | """ ## ##########+######???????????????????? | | " + ??????????????? | | # ??????????????? | | # #################?##????????????????? | | # #####?#?###???#?????????????????????? | | [ # ###########?#???????????????????????? | | # ##?#########???#???????#????????????? | | ####+###### ##########?####?????????????????????? | | #### ###### ###############?????????????????????? | | #### ###### ####### ##########??????????????????? | | #### ###?## R"""T""" "??????????????????? | | #### ###### """ """ "????BB????????????? | | #### ###### "????BB????????????? | | #### #?#?## "??????????????????? | | #### ####?# "" "??????????????????? | | ###### @" "??????????????????? | | ###### "??"???????????????? | | ###### "????BB????????????? | | ##?### "????BB????????????? | | #?##?# "??"???????#???????? | | ###### u####### ##########??????????????????? | | ###### ##########??????????????????????????? | | ##?### ########???#????????????????????????? | | #### ###?## #?####????#?????????????????????????? | | ####+###### #?###?????????#?????????????????????? | | ? ?? ?# #????????????????????????#??????????? | | ? ? ??# ##??#?#??????#??????????????????????? | | "??" ? ## ????????#???????????????????????????? | | ""F?" ? ## ?????????????#??????????????????????? | | ????" ???? ?##?????????#???????????????????????? | | ??? ?? ??? ????????????????????????????????????? | | ????? ???? ????????????????????????????????????? | | ?????????? ??????????##????????????????????????? | | ?????????## ?????????????#??????????????????????? | | ??????????? ????????????????????????????????????? | | ?????????????????????????????????????????????????? | | ?????????????????????????????????????????????????? | | ?????????????????????????????????????????????????? | | ?????????????????????????????????????????????????? | | ?????????????????????????????????????????????????? | +----------------------------------------------------+ Best States ------------- Heat Dissipation 52 Energy Generation 38 Energy Capacity 515 Matter Stores 300 Matter Capacity 300 Sight Range 24 Terrain Scan Range 20 Terrain Scan Density 310 ECM Strength 1 Jamming Range 16 Power Amplification 30 Armor Coverage 150 Evasion (%) 65 Offensive Hacking 58 Defensive Hacking 34 Item Schematics ----------------- Imp. VTOL Module | -7/Factory | Scanalyzed Cld. VTOL Module | -6/Factory | Hacked Adv. Hacking Suite | -4/Factory | Hacked Adv. Terrain Scanner | -3/Research | Hacked Robot Schematics ------------------ None Fabricated ------------ Imp. VTOL Module | x1 | -7/Factory Imp. VTOL Module | x1 | -7/Factory Adv. Hacking Suite | x1 | -4/Factory Adv. Hacking Suite | x1 | -3/Research Adv. Terrain Scanner | x2 | -2/Research Repaired ---------- Xenon Bombardment Thruster | 30% | -4/Factory Alien Tech Used ----------------- None Achievements -------------- Pacifist Challenges ------------ None Game ------ Seed InertialArmoredLauncher Manual? 0 Play Time 02:38:54 Cumulative 112.8 hours Start 2025.08.06 @ 01:32:29 End 2025.08.06 @ 04:10:07 Sessions 1 Manual Loads 0 Difficulty Rogue Special Mode None Game No. 98 Rogue 98 Adventurer 0 Explorer 0 Win Type 0 Total 4 Types 4/0/0/0/0/0/0/0/0/0 Lore% 30 Gallery% 48 Achievement% 45 Wizard Run 0 Options --------- Layout 2 ASCII 0 Keyboard 1 Movement Arrows Keybinds 0 Fullscreen 1 Font 32/Tamsyn Map View 50x44 Zoom Use 0% Tactical HUD 1 Map Filters NONE Filters NONE Steam 1 RUN: 2e819dea-734c-425f-9d36-e2b5798e3615